bitfinex-derivatives/quotes_SOLF0:USTF0_20250923
["timestamp","ask_amount","ask_price","bid_price","bid_amount"]
[1758650078943,3.24762584,216.67,216.63,7.55]
[1758650079150,3.24762584,216.66,216.63,7.55]
[1758650079350,3.24762584,216.65,216.57,11.7034]
[1758650079545,3.24762584,216.64,216.58,1.65519065]
[1758650079849,1.65519065,216.68,216.58,1.65519065]
[1758650080049,3.24622508,216.67,216.58,1.65519065]
[1758650080257,12.33141573,216.66,216.59,4.153]
[1758650080457,3.24622508,216.65,216.59,4.153]
[1758650080647,10.67622508,216.64,216.59,4.153]
[1758650080848,3.24622508,216.63,216.59,4.153]
[1758650081048,3.24622508,216.62,216.59,11.703]
[1758650081249,7.43,216.64,216.59,11.703]
[1758650081450,3.24596552,216.63,216.59,11.703]
[1758650081650,3.24596552,216.62,216.59,11.703]
[1758650081846,7.43,216.64,216.59,11.703]
[1758650082052,3.24530991,216.63,216.59,11.703]
[1758650082252,3.24530991,216.62,216.59,4.153]
[1758650082453,7.43,216.64,216.59,11.703]
[1758650082655,3.24488305,216.63,216.6,7.55]
[1758650082955,4.1516,216.67,216.6,7.55]
[1758650083258,3.24302048,216.66,216.6,7.55]
[1758650083457,3.24302048,216.65,216.59,9.20519065]
[1758650083659,3.24302048,216.64,216.6,7.55]
[1758650083960,4.1516,216.67,216.61,4.1526]
[1758650084153,3.24280692,216.66,216.61,4.1526]
[1758650084350,10.67280692,216.65,216.61,4.1526]
[1758650084554,3.24280692,216.64,216.61,11.7026]
[1758650084757,7.43,216.65,216.61,11.7026]
[1758650084956,3.24269331,216.64,216.61,11.7026]
[1758650085259,4.1516,216.67,216.61,11.7026]
[1758650085564,3.24255621,216.66,216.62,7.55]
[1758650085756,7.43,216.69,216.62,7.55]
[1758650085955,3.24274502,216.68,216.64,4.152]
[1758650086260,3.24274502,216.67,216.64,4.152]
[1758650086564,3.2424599,216.66,216.64,4.152]
[1758650086856,3.24247396,216.65,216.59,1.65519065]
[1758650087061,1.65519065,216.68,216.6,7.55]
[1758650087268,7.39373231,216.67,216.61,4.1526]
[1758650087559,7.43,216.69,216.6,7.55]
[1758650087560,3.24203231,216.66,216.6,7.55]
[1758650087760,3.24203231,216.65,216.6,7.55]
[1758650087957,9.08519065,216.69,216.6,7.55]
[1758650088158,3.24212248,216.68,216.6,7.55]
[1758650088348,3.24212248,216.67,216.6,7.55]
[1758650088553,3.24212248,216.66,216.6,7.55]
[1758650088760,3.24212248,216.65,216.58,11.7033]
[1758650088957,4.1519,216.66,216.48,64.6373]
[1758650088958,7.43,216.63,216.52,7.55]
[1758650089164,3.24212248,216.62,216.54,1.65519065]
[1758650089355,9.08519065,216.63,216.54,9.20519065]
[1758650089557,3.24121578,216.62,216.54,9.20519065]
[1758650089862,9.08519065,216.63,216.56,4.1537]
[1758650090058,3.2413623,216.62,216.56,4.1537]
[1758650090255,3.2413623,216.61,216.54,1.65519065]
[1758650090460,3.2413623,216.6,216.53,7.55]
[1758650090656,9.08519065,216.63,216.53,7.55]
[1758650090960,3.24119235,216.62,216.53,7.55]
[1758650091163,3.24119235,216.61,216.53,7.55]
[1758650091362,3.24119235,216.6,216.54,4.1539]
[1758650091564,7.43,216.63,216.54,1.65519065]
[1758650091759,3.2416074,216.62,216.6,4.1529]
[1758650091961,7.43,216.67,216.6,4.1529]
[1758650092162,3.2419917,216.66,216.6,4.1529]
[1758650092364,3.2419917,216.65,216.61,7.55]
[1758650092565,7.43,216.67,216.61,7.55]
[1758650092765,10.67192393,216.66,216.61,7.55]
[1758650092965,3.24192393,216.65,216.61,7.55]
[1758650093168,3.24192393,216.65,216.61,4.1526]
[1758650093475,1.65519065,216.68,216.62,7.47]
[1758650093666,3.24183426,216.67,216.62,7.47]
[1758650093866,3.24183426,216.66,216.62,7.47]
[1758650094066,3.24183426,216.65,216.62,7.47]
[1758650094263,1.65519065,216.68,216.62,7.47]
[1758650094464,3.24174097,216.67,216.63,7.47]
[1758650094667,7.09,216.7,216.62,9.12519065]
[1758650094874,3.24226514,216.69,216.62,9.12519065]
[1758650095071,3.24226514,216.68,216.62,9.12519065]
[1758650095273,3.24167862,216.67,216.62,1.65519065]
[1758650095473,7.09,216.7,216.63,7.47]
[1758650095775,3.24158076,216.69,216.62,1.65519065]
[1758650095972,3.24158076,216.68,216.62,1.65519065]
[1758650096174,3.24158076,216.67,216.62,9.12519065]
[1758650096376,4.1513,216.69,216.63,4.1522]
[1758650096675,3.24126659,216.68,216.63,11.6222]
[1758650096872,3.24126659,216.67,216.63,11.6222]
[1758650097172,8.74519065,216.7,216.63,11.6222]
[1758650097373,3.24163224,216.69,216.63,11.6222]
[1758650097575,3.24163224,216.68,216.64,7.47]
[1758650097874,3.24163224,216.67,216.64,7.47]
[1758650098072,8.74519065,216.7,216.64,7.47]
[1758650098276,3.24136259,216.69,216.64,11.622]
[1758650098464,3.24136259,216.68,216.62,1.65519065]
[1758650098777,4.1509,216.71,216.63,7.47]
[1758650098976,3.24190433,216.7,216.63,7.47]
[1758650099276,3.24190433,216.69,216.63,7.47]
[1758650099581,11.2409,216.71,216.63,4.1524]
[1758650099775,7.39255257,216.7,216.64,7.47]
[1758650100076,3.24135257,216.69,216.64,7.47]
[1758650100274,3.24135257,216.68,216.64,7.47]
[1758650100475,3.24135257,216.67,216.64,7.47]
[1758650100671,7.09,216.73,216.65,7.47]
[1758650100982,3.24084355,216.72,216.65,7.47]
[1758650101177,7.09,216.68,216.6,4.1528]
[1758650101375,1.65519065,216.63,216.57,7.47]
[1758650101679,3.240277,216.62,216.56,7.47]
[1758650101880,1.65519065,216.65,216.56,7.47]
[1758650102075,3.24059102,216.64,216.56,7.47]
[1758650102271,3.24059102,216.63,216.56,7.47]
[1758650102977,1.65519065,216.62,216.56,7.47]
[1758650103176,3.24273149,216.61,216.52,1.65519065]
[1758650103375,1.65519065,216.62,216.53,7.47]
[1758650103580,3.24278249,216.61,216.53,7.47]
[1758650103779,7.09,216.63,216.56,7.47]
[1758650104080,3.24439084,216.62,216.56,7.47]
[1758650104280,7.09,216.67,216.57,1.65519065]
[1758650104480,3.24592536,216.66,216.63,7.47]
[1758650104681,3.24592536,216.65,216.63,7.47]
[1758650104881,120.31519065,216.71,216.6,1.65519065]
[1758650104882,3.24612341,216.64,216.6,1.65519065]
[1758650105179,4.1517,216.67,216.6,9.12519065]
[1758650105481,3.24702811,216.66,216.6,9.12519065]
[1758650105677,3.24702811,216.65,216.6,1.65519065]
[1758650105883,3.24702811,216.64,216.6,1.65519065]
[1758650106086,3.24061214,216.63,216.56,7.47]
[1758650106281,3.24061214,216.62,216.56,7.47]
[1758650106582,8.74519065,216.66,216.56,7.47]
[1758650106781,3.24191399,216.65,216.57,4.1534]
[1758650107086,3.24191399,216.64,216.57,4.1534]
[1758650107276,3.24191399,216.63,216.59,7.47]
[1758650107482,7.09,216.66,216.59,7.47]
[1758650107678,3.24306624,216.65,216.59,7.47]
[1758650107985,3.24306624,216.64,216.59,7.47]
[1758650108184,3.24306624,216.63,216.59,4.153]
[1758650108387,3.24306624,216.62,216.6,7.47]
[1758650108686,11.242,216.66,216.59,7.47]
[1758650108886,3.2462099,216.65,216.59,7.47]
[1758650109184,3.2462099,216.64,216.58,9.12519065]
[1758650109384,3.2462099,216.63,216.59,7.47]
[1758650109585,3.2462099,216.62,216.58,1.65519065]
[1758650109884,3.2462099,216.61,216.58,5.80839065]
[1758650110084,4.152,216.66,216.59,7.47]
[1758650110378,123.58232146,216.69,216.6,1.65519065]
[1758650110379,3.25042303,216.65,216.6,1.65519065]
[1758650110683,127.34519065,216.72,216.56,64.6129]
[1758650110684,7.09,216.72,216.63,9.12519065]
[1758650110884,4.40500146,216.71,216.63,9.12519065]
[1758650111085,7.09,216.72,216.63,9.12519065]
[1758650111086,3.25101949,216.7,216.63,9.12519065]
[1758650111285,3.25101949,216.69,216.63,13.27749065]
[1758650111678,3.25101949,216.68,216.64,7.45]
[1758650111878,3.25101949,216.67,216.63,13.25749065]
[1758650112077,3.25101949,216.66,216.64,7.45]
[1758650112282,3.25101949,216.65,216.64,7.45]
[1758650112585,3.25101949,216.69,216.63,13.25749065]
[1758650112779,3.25101949,216.68,216.63,5.80749065]
[1758650112983,3.25101949,216.67,216.63,5.80749065]
[1758650113285,3.25101949,216.66,216.64,7.45]
[1758650113485,3.25101949,216.65,216.64,7.45]
[1758650113682,3.25101949,216.69,216.64,7.45]
[1758650113888,3.25101949,216.68,216.64,7.45]
[1758650114182,3.25101949,216.67,216.64,7.45]
[1758650114383,3.25101949,216.66,216.64,7.45]
[1758650114589,3.25101949,216.65,216.64,7.45]
[1758650114984,4.96232146,216.73,216.64,7.45]
[1758650115283,3.25662871,216.72,216.71,7.45]
[1758650115676,4.96232146,216.8,216.71,9.56519065]
[1758650115881,4.96232146,216.81,216.77,1.65519065]
[1758650116181,4.96232146,216.81,216.71,64.5692]
[1758650116182,4.96232146,216.84,216.81,7.45]
[1758650116381,7.03,216.88,216.81,7.45]
[1758650116885,7.03,216.88,216.81,9.10519065]
[1758650118191,5.80199065,216.92,216.81,13.25409065]
[1758650118491,4.1468,216.92,216.84,1.65519065]
[1758650119087,4.1468,216.92,216.83,4.1485]
[1758650119289,4.1468,216.92,216.85,1.65519065]
[1758650120186,8.68519065,216.94,216.84,7.45]
[1758650120388,8.68519065,216.94,216.81,1.65519065]
[1758650120389,1.65519065,216.91,216.81,1.65519065]
[1758650120588,4.1471,216.91,216.81,1.65519065]
[1758650120790,7.03,216.9,216.81,1.65519065]
[1758650121384,4.1475,216.89,216.81,1.65519065]
[1758650122191,7.03,216.9,216.81,1.65519065]
[1758650122397,7.03,216.92,216.83,1.65519065]
[1758650122696,1.65519065,216.91,216.82,7.45]
[1758650122881,4.1474,216.89,216.82,7.45]
[1758650124292,1.65519065,216.91,216.82,7.45]
[1758650124500,1.65519065,216.91,216.82,11.5987]
[1758650124797,1.65519065,216.91,216.83,1.65519065]
[1758650125702,11.177,216.92,216.85,7.48]
[1758650125890,7.03,216.92,216.85,9.13519065]
[1758650126092,4.1464,216.95,216.85,9.13519065]
[1758650126390,7.21,216.96,216.87,1.65519065]
[1758650126585,7.21,216.96,216.88,9.13519065]
[1758650127494,1.65519065,216.95,216.86,1.65519065]
[1758650128202,7.21,216.96,216.86,1.65519065]
[1758650128407,8.86519065,216.96,216.86,5.80319065]
[1758650129405,8.86519065,216.96,216.86,1.65519065]
[1758650130104,8.86519065,216.96,216.87,7.48]
[1758650130806,8.86519065,216.96,216.87,11.6276]
[1758650131104,7.21,216.96,216.88,1.65519065]
[1758650132409,4.1463,216.95,216.88,1.65519065]
[1758650132606,4.1463,216.95,216.87,7.48]
[1758650132806,4.1466,216.94,216.87,7.48]
[1758650133001,64.4988,216.95,216.83,7.48]
[1758650133206,7.21,216.94,216.83,7.48]
[1758650134410,4.1474,216.89,216.83,7.48]
[1758650134607,7.21,216.9,216.83,7.48]
[1758650135707,7.21,216.9,216.8,13.6240332]
[1758650136004,7.21,216.9,216.78,7.48]
[1758650136399,4.1478,216.88,216.78,11.6293]
[1758650136796,4.1478,216.88,216.78,7.48]
[1758650137000,4.1478,216.88,216.79,4.1493]
[1758650137607,11.3581,216.86,216.78,7.48]
[1758650137798,7.21,216.86,216.75,348.72]
[1758650138002,4.1491,216.81,216.73,7.48]
[1758650138502,7.21,216.84,216.73,7.48]
[1758650138901,2.57903985,216.88,216.73,7.48]
[1758650139309,2.57903985,216.88,216.74,7.48]
[1758650139804,4.1482,216.86,216.76,4.1497]
[1758650140110,7.21,216.87,216.76,4.1497]
[1758650140305,7.21,216.87,216.76,11.6297]
[1758650140507,7.21,216.86,216.76,7.48]
[1758650141505,4.1488,216.82,216.76,7.48]
[1758650141709,7.21,216.83,216.71,7.48]
[1758650142615,4.1495,216.79,216.71,7.48]
[1758650142910,7.21,216.81,216.68,7.48]
[1758650143210,7.21,216.77,216.68,7.48]
[1758650144112,4.1501,216.75,216.68,7.48]
[1758650144308,7.21,216.77,216.68,7.48]
[1758650144504,7.21,216.82,216.73,4.1505]
[1758650145610,7.21,216.82,216.75,4.1501]
[1758650146313,11.3589,216.82,216.73,4.1505]
[1758650147214,7.21,216.82,216.74,4.1501]
[1758650147820,7.21,216.86,216.74,7.48]
[1758650148812,11.3591,216.81,216.74,4.1502]
[1758650149209,11.3591,216.81,216.69,72.0541]
[1758650149409,7.21,216.81,216.72,7.48]
[1758650149615,4.1486,216.83,216.72,7.48]
[1758650149813,7.21,216.85,216.72,7.48]
[1758650150606,7.21,216.85,216.71,64.5686]
[1758650150607,4.1485,216.84,216.77,4.1495]
[1758650150919,7.21,216.85,216.77,4.1495]
[1758650151107,4.1484,216.84,216.75,7.48]
[1758650151313,7.21,216.83,216.7,7.48]
[1758650152518,7.21,216.83,216.74,4.1503]
[1758650152716,71.7446,216.83,216.7,7.48]
[1758650153117,11.3593,216.79,216.71,4.1507]
[1758650153321,7.21,216.85,216.7,7.48]
[1758650153614,7.21,216.85,216.78,4.1495]
[1758650154012,7.21,216.85,216.76,7.76]
[1758650154314,7.21,216.85,216.8,11.9091]
[1758650154511,7.21,216.86,216.71,7.76]
[1758650154716,4.1489,216.82,216.74,4.1501]
[1758650154916,11.3589,216.82,216.71,7.76]
[1758650155920,11.3589,216.82,216.74,4.1503]
[1758650156625,11.3595,216.79,216.72,4.1507]
[1758650156824,7.21,216.79,216.71,7.76]
[1758650157126,11.3599,216.76,216.71,7.76]
[1758650157318,64.5389,216.82,216.59,68.64031532]
[1758650157319,7.21,216.77,216.67,7.76]
[1758650157724,4.1502,216.75,216.68,4.1513]
[1758650159324,4.1502,216.75,216.67,7.76]
[1758650159325,11.3597,216.77,216.69,4.1511]
[1758650160024,7.21,216.77,216.7,4.1509]
[1758650160228,7.21,216.77,216.64,78.76663448]
[1758650160229,7.21,216.83,216.72,7.76]
[1758650160430,7.21,216.83,216.73,64.5615]
[1758650160629,7.21,216.83,216.75,4.15]
[1758650160829,7.21,216.83,216.72,7.76]
[1758650161733,7.21,216.83,216.66,182.6037]
[1758650161734,7.21,216.83,216.67,7.76]
[1758650161928,64.5319,216.84,216.7,4.151]
[1758650161929,11.3598,216.77,216.7,4.151]
[1758650162129,7.21,216.77,216.67,7.76]
[1758650162326,4.96232146,216.84,216.7,7.76]
[1758650162327,7.21,216.83,216.7,7.76]
[1758650163128,11.359,216.81,216.7,7.76]
[1758650163526,64.5554,216.76,216.59,7.76]
[1758650163733,7.21,216.72,216.59,7.76]
[1758650163926,3.17154248,216.71,216.59,7.76]
[1758650164122,3.17154248,216.7,216.59,7.76]
[1758650164332,3.17154248,216.69,216.59,7.76]
[1758650164531,7.21,216.72,216.59,7.76]
[1758650164723,3.16939327,216.71,216.62,4.1525]
[1758650164927,3.16939327,216.7,216.59,7.76]
[1758650165128,3.16939327,216.69,216.59,7.76]
[1758650165329,11.3608,216.72,216.59,7.76]
[1758650165533,3.16789489,216.71,216.59,7.76]
[1758650165836,3.16789489,216.7,216.62,4.1524]
[1758650166039,3.16789489,216.69,216.62,4.1524]
[1758650166336,11.3608,216.72,216.62,4.1524]
[1758650166536,3.16677935,216.71,216.62,4.1524]
[1758650166838,7.21,216.69,216.59,11.913]
[1758650167337,4.1515,216.68,216.61,4.1528]
[1758650167535,7.21,216.69,216.61,4.1528]
[1758650168539,7.21,216.69,216.59,11.9131]
[1758650168934,7.21,216.69,216.6,4.1528]
[1758650169140,7.21,216.69,216.59,7.76]
[1758650170026,7.21,216.77,216.59,7.76]
[1758650170234,7.21,216.75,216.61,7.76]
[1758650170432,7.21,216.75,216.6,64.6013]
[1758650170433,3.16268141,216.74,216.63,7.76]
[1758650170634,7.21,216.75,216.63,7.76]
[1758650170848,3.1622859,216.74,216.63,7.76]
[1758650171042,10.3722859,216.73,216.63,7.76]
[1758650171241,7.21,216.73,216.63,7.76]
[1758650173340,4.1497,216.77,216.69,4.1511]
[1758650173641,10.42565142,216.76,216.69,4.1511]
[1758650173843,3.16565142,216.75,216.65,7.54]
[1758650174037,7.26,216.76,216.65,7.54]
[1758650174341,7.26,216.76,216.67,4.1515]
[1758650174342,3.16502068,216.75,216.67,4.1515]
[1758650174534,7.26,216.76,216.67,4.1515]
[1758650174732,3.16615738,216.75,216.67,4.1515]
[1758650174934,7.26,216.76,216.67,4.1515]
[1758650175135,3.16590015,216.75,216.67,4.1515]
[1758650175435,7.26,216.76,216.65,7.54]
[1758650175632,4.1505,216.73,216.65,7.54]
[1758650176735,11.4105,216.73,216.65,7.54]
[1758650176935,11.4105,216.73,216.65,11.6918]
[1758650177543,3.17017726,216.72,216.65,11.6918]
[1758650177739,4.1508,216.72,216.63,4.1524]
[1758650177931,3.17000645,216.71,216.63,4.1524]
[1758650178135,4.1508,216.72,216.63,4.1524]
[1758650178335,3.17000203,216.71,216.63,4.1524]
[1758650178535,3.17000203,216.7,216.63,4.1524]
[1758650179440,11.4113,216.69,216.62,7.54]
[1758650180238,7.26,216.69,216.62,7.54]
[1758650180439,7.26,216.74,216.63,4.1524]
[1758650180644,4.32454182,216.73,216.63,4.1524]
[1758650180941,3.17059809,216.72,216.63,4.1524]
[1758650181136,3.17059809,216.71,216.63,4.1524]
[1758650181339,7.32179809,216.7,216.62,7.54]
[1758650181539,3.17059809,216.69,216.62,7.54]
[1758650182343,7.26,216.68,216.58,4.1533]
[1758650182541,3.17059809,216.67,216.58,4.1533]
[1758650182843,7.26,216.66,216.56,7.54]
[1758650183045,3.17059809,216.65,216.56,7.54]
[1758650183841,7.11,216.63,216.56,7.54]
[1758650184036,3.17052626,216.62,216.54,2.10649]
[1758650184237,7.11,216.62,216.54,2.10649]
[1758650184441,7.11,216.6,216.54,2.10649]
[1758650184635,3.16999822,216.59,216.54,2.10649]
[1758650184847,7.11,216.64,216.54,2.10649]
[1758650185144,11.2626,216.62,216.54,2.10649]
[1758650185338,3.17021175,216.61,216.54,2.10649]
[1758650185539,3.17021175,216.6,216.54,2.10649]
[1758650185740,4.153,216.61,216.54,2.10649]
[1758650186039,3.16947612,216.6,216.54,2.10649]
[1758650186243,4.153,216.61,216.54,2.10649]
[1758650186436,7.3218239,216.6,216.54,2.10649]
[1758650186749,7.11,216.58,216.54,2.10649]
[1758650187048,7.11,216.56,216.54,2.10649]
[1758650187236,11.2639,216.55,216.54,1.90535342]
[1758650187442,14.43059489,216.55,216.54,5.342e-05]
[1758650187639,14.89059489,216.55,216.54,5.342e-05]
[1758650187944,4.1552,216.49,216.41,7.07]
[1758650188135,11.2652,216.49,216.41,7.07]
[1758650188954,7.11,216.49,216.41,7.07]
[1758650189843,126.2703,216.49,216.36,4.1577]
[1758650190149,7.11,216.47,216.36,4.1577]
[1758650190648,7.11,216.47,216.38,4.1575]
[1758650191742,7.11,216.44,216.35,11.2282]
[1758650192544,7.11,216.44,216.31,71.7578]
[1758650192744,7.11,216.44,216.32,7.07]
[1758650192945,7.11,216.44,216.35,7.07]
[1758650193245,70.54,216.46,216.38,4.1575]
[1758650194044,7.11,216.47,216.4,4.1572]
[1758650194450,7.11,216.47,216.36,71.7502]
[1758650194644,7.11,216.47,216.39,4.1574]
[1758650194844,7.11,216.47,216.4,64.6688]
[1758650195044,7.11,216.47,216.4,7.07]
[1758650195247,7.11,216.47,216.42,4.1568]
[1758650195440,7.11,216.47,216.36,64.6802]
[1758650195441,7.11,216.49,216.37,7.07]
[1758650195652,3.25138642,216.48,216.37,7.07]
[1758650195849,7.11,216.49,216.37,7.07]
[1758650196647,69.74,216.5,216.41,4.157]
[1758650196847,10.35979464,216.49,216.41,4.157]
[1758650197048,7.11,216.49,216.41,4.157]
[1758650197244,125.01,216.49,216.41,4.157]
[1758650198151,7.11,216.49,216.41,4.157]
[1758650198448,125.01,216.49,216.41,4.157]
[1758650198843,125.01,216.49,216.4,7.07]
[1758650198844,129.1655,216.49,216.4,7.07]
[1758650199043,129.1655,216.49,216.37,4.1578]
[1758650199252,7.11,216.47,216.37,4.1578]
[1758650199951,7.11,216.47,216.38,7.07]
[1758650200351,7.11,216.47,216.41,4.157]
[1758650201253,7.11,216.47,216.38,7.07]
[1758650202154,4.25210095,216.44,216.33,7.07]
[1758650202355,7.11,216.43,216.33,7.07]
[1758650202554,3.24646258,216.42,216.33,7.07]
[1758650202759,7.11,216.4,216.28,7.07]
[1758650202956,3.24660659,216.39,216.28,7.07]
[1758650203148,3.24660659,216.38,216.28,7.07]
[1758650203454,4.1576,216.38,216.28,11.2294]
[1758650203657,7.11,216.4,216.28,7.07]
[1758650203953,3.24313122,216.39,216.32,4.1588]
[1758650204154,3.24313122,216.38,216.28,7.07]
[1758650204350,7.11,216.4,216.28,7.07]
[1758650204548,7.11,216.38,216.28,7.07]
[1758650205050,3.24161167,216.37,216.28,7.07]
[1758650205358,3.24161167,216.36,216.28,7.07]
[1758650205558,7.11,216.38,216.28,7.07]
[1758650205858,3.23984019,216.37,216.28,7.07]
[1758650206052,7.11,216.35,216.28,7.07]
[1758650206457,7.11,216.35,216.28,11.2295]
[1758650210155,7.11,216.33,216.24,4.1602]
[1758650210362,3.2370861,216.32,216.24,4.1602]
[1758650210560,3.2370861,216.31,216.24,4.1602]
[1758650210754,11.2688,216.33,216.25,4.16]
[1758650210954,7.11,216.37,216.25,7.07]
[1758650211155,3.23572778,216.36,216.25,7.07]
[1758650211358,3.23572778,216.35,216.25,7.07]
[1758650211553,124.99,216.37,216.25,7.07]
[1758650211754,3.23484773,216.36,216.25,7.07]
[1758650211952,3.23484773,216.35,216.25,7.07]
[1758650212159,124.99,216.37,216.25,7.07]
[1758650212359,3.23421687,216.36,216.25,7.07]
[1758650212663,7.11,216.37,216.29,7.07]
[1758650212856,3.23409284,216.36,216.23,7.07]
[1758650213053,7.11,216.37,216.27,7.07]
[1758650213655,7.11,216.37,216.29,4.1592]
[1758650213852,7.11,216.37,216.27,7.07]
[1758650214458,7.11,216.37,216.3,4.159]
[1758650214660,349.34,216.42,216.29,71.9093]
[1758650214861,128.85360291,216.41,216.29,71.9093]
[1758650215166,7.74,216.39,216.32,4.1588]
[1758650215363,3.23360291,216.38,216.32,4.1588]
[1758650215560,3.23360291,216.38,216.3,4.1592]
[1758650215767,7.74,216.37,216.3,4.1592]
[1758650216064,7.74,216.37,216.29,7.21]
[1758650216266,7.74,216.38,216.29,7.21]
[1758650216566,3.23425784,216.37,216.29,7.21]
[1758650216764,7.74,216.38,216.29,7.21]
[1758650216968,3.23426253,216.37,216.29,7.21]
[1758650217157,7.74,216.38,216.29,7.21]
[1758650217360,3.2351453,216.37,216.31,4.1588]
[1758650217556,7.74,216.38,216.29,71.9112]
[1758650217764,7.74,216.38,216.3,64.6984]
[1758650218068,7.74,216.37,216.34,4.1582]
[1758650218262,7.74,216.4,216.34,4.1582]
[1758650218461,7.74,216.38,216.34,4.1582]
[1758650218969,349.34,216.42,216.31,64.6941]
[1758650219165,121.0972901,216.41,216.31,64.6941]
[1758650219361,3.2372901,216.4,216.31,64.6941]
[1758650219565,117.86,216.41,216.32,7.21]
[1758650220065,3.2391748,216.4,216.32,11.3687]
[1758650220265,467.2,216.42,216.32,7.21]
[1758650220470,3.24036911,216.41,216.32,7.21]
[1758650220662,3.24036911,216.4,216.34,71.8969]
[1758650220865,9.39885695,216.43,216.34,71.8969]
[1758650221058,9.39885695,216.54,216.46,4.1561]
[1758650221262,7.74,216.54,216.46,1.65885695]
[1758650221668,7.74,216.54,216.44,7.21]
[1758650222168,7.74,216.54,216.44,11.3663]
[1758650222773,4.1548,216.53,216.44,11.3663]
[1758650223377,7.74,216.47,216.39,7.21]
[1758650224178,7.74,216.47,216.33,7.21]
[1758650224376,7.74,216.47,216.35,4.158]
[1758650224377,72.3894,216.47,216.35,4.158]
[1758650224570,4.1569,216.42,216.33,7.21]
[1758650224768,7.74,216.43,216.33,7.21]
[1758650225276,11.8968,216.43,216.33,7.21]
[1758650225776,4.157,216.42,216.33,7.21]
[1758650226276,7.74,216.43,216.33,7.21]
[1758650226969,4.157,216.42,216.34,4.1584]
[1758650227568,7.74,216.43,216.34,4.1584]
[1758650228570,7.74,216.43,216.33,7.21]
[1758650228772,7.74,216.41,216.26,7.21]
[1758650228971,117.82,216.4,216.26,7.21]
[1758650229171,4.158,216.37,216.26,7.21]
[1758650229675,7.74,216.38,216.29,4.1592]
[1758650229864,7.74,216.38,216.26,7.21]
[1758650230070,7.7,216.42,216.32,7.24]
[1758650230472,7.7,216.42,216.35,4.1581]
[1758650230972,7.7,216.42,216.32,7.24]
[1758650231372,7.7,216.42,216.36,4.1579]
[1758650232570,4.96232146,216.46,216.36,71.9204]
[1758650232771,12.66232146,216.47,216.37,7.24]
[1758650232971,3.18985416,216.46,216.37,7.24]
[1758650233174,3.18985416,216.45,216.42,4.1567]
[1758650233472,3.18985416,216.44,216.42,4.1567]
[1758650233776,3.18985416,216.43,216.42,4.1567]
[1758650234076,3.18985416,216.43,216.42,11.3967]
[1758650234277,3.18985416,216.43,216.4,11.3972]
[1758650234471,3.18985416,216.42,216.4,11.3972]
[1758650234666,354.34232146,216.49,216.4,11.3972]
[1758650234867,3.18577786,216.48,216.4,11.3972]
[1758650235077,3.18577786,216.47,216.4,11.3972]
[1758650235375,3.18577786,216.46,216.4,11.3972]
[1758650235578,3.18577786,216.45,216.4,11.3972]
[1758650235774,7.7,216.43,216.37,4.1577]
[1758650236075,3.18577786,216.42,216.37,4.1577]
[1758650236267,3.18577786,216.41,216.38,7.24]
[1758650236471,3.18577786,216.4,216.38,7.24]
[1758650236672,3.18577786,216.39,216.38,7.24]
[1758650236872,3.18577786,216.45,216.39,4.1573]
[1758650237074,3.18577786,216.44,216.4,7.24]